bitfinex/quotes_BTCUSD_20220205
["timestamp","ask_amount","ask_price","bid_price","bid_amount"]
[1644094954607,7.48625945,41638.0,41634.0,0.436566]
[1644094956949,7.48625945,41638.0,41634.0,0.434376]
[1644094957154,7.48625945,41638.0,41634.0,0.41105455]
[1644094957851,7.48625945,41638.0,41634.0,0.41076663]
[1644094958051,7.48625945,41638.0,41634.0,0.41105455]
[1644094958251,7.48625945,41638.0,41634.0,0.46105455]
[1644094958451,7.48207555,41638.0,41634.0,0.46105455]
[1644094959150,7.48207555,41638.0,41634.0,0.46076663]
[1644094959351,7.48207555,41638.0,41634.0,0.46105455]
[1644094960409,7.48207555,41638.0,41634.0,0.46076663]
[1644094960608,7.48207555,41638.0,41634.0,0.46105455]
[1644094961710,7.48207555,41638.0,41634.0,0.46076663]
[1644094961911,7.48207555,41638.0,41634.0,0.46105455]
[1644094962717,7.48207555,41638.0,41634.0,0.46076663]
[1644094962913,7.48207555,41638.0,41634.0,0.46105455]
[1644094963913,7.48207555,41638.0,41634.0,0.46076663]
[1644094964155,7.48207555,41638.0,41634.0,0.46105455]
[1644094965152,7.48207555,41638.0,41634.0,0.46076663]
[1644094965454,0.220638,41637.0,41634.0,0.21034027]
[1644094965654,0.220638,41637.0,41634.0,0.00028792]
[1644094965655,0.270638,41637.0,41634.0,0.00028792]
[1644094965954,0.41574704,41637.0,41633.0,0.0007116]
[1644094966155,0.40350857,41633.0,41628.0,0.00028792]
[1644094966453,0.24388119,41631.0,41627.0,0.03588831]
[1644094966652,0.219824,41630.0,41627.0,0.03588831]
[1644094966851,0.28539901,41630.0,41627.0,0.03588831]
[1644094967452,0.28539901,41630.0,41627.0,0.03542817]
[1644094967656,0.28539901,41630.0,41627.0,0.03571609]
[1644094968700,0.28539901,41630.0,41627.0,0.03542817]
[1644094968903,0.28539901,41630.0,41627.0,0.03571609]
[1644094969703,0.05,41628.0,41627.0,0.00028792]
[1644094969905,0.269824,41628.0,41626.0,0.00071166]
[1644094970106,0.219824,41627.0,41626.0,0.00071166]
[1644094970906,0.219824,41627.0,41623.0,0.00028792]
[1644094971107,0.219824,41627.0,41622.0,0.01976899]
[1644094971108,0.38968137,41626.0,41624.0,0.00071168]
[1644094971406,0.219824,41625.0,41624.0,0.00071168]
[1644094972050,0.219824,41625.0,41622.0,0.00028792]
[1644094972251,0.219824,41625.0,41621.0,0.08954707]
[1644094972452,0.219824,41625.0,41621.0,0.06525877]
[1644094973151,0.219824,41625.0,41621.0,0.04479668]
[1644094973951,0.43968137,41626.0,41621.0,0.01]
[1644094974152,0.219824,41625.0,41621.0,0.00881126]
[1644094974552,0.269824,41625.0,41621.0,0.00881126]
[1644094975057,0.68968137,41626.0,41616.0,0.02048968]
[1644094975058,0.219824,41621.0,41616.0,0.02048968]
[1644094975253,0.219824,41621.0,41611.0,0.01]
[1644094975254,0.5,41617.0,41611.0,0.01]
[1644094975514,0.05,41614.0,41611.0,0.01]
[1644094975714,0.38157037,41612.0,41611.0,0.01]
[1644094975910,0.81873905,41612.0,41611.0,0.01]
[1644094976515,0.26838164,41612.0,41611.0,0.00993801]
[1644094977410,0.59296799,41612.0,41611.0,0.00993801]
[1644094978714,0.90224511,41612.0,41611.0,0.00993801]
[1644094979351,0.90224511,41612.0,41611.0,0.00493801]
[1644094980754,0.68490043,41612.0,41611.0,0.00493801]
[1644094981753,0.05103696,41612.0,41611.0,0.00493801]
[1644094981955,0.02050077,41616.0,41611.0,0.00493801]
[1644094982254,0.051019,41615.0,41611.0,0.00493801]
[1644094982454,0.05,41614.0,41611.0,0.00493801]
[1644094982898,0.29552075,41612.0,41611.0,0.00493801]
[1644094983200,0.34653975,41612.0,41611.0,0.00493801]
[1644094983998,0.39653975,41612.0,41611.0,0.00493801]
[1644094984198,0.39868435,41612.0,41611.0,0.00493801]
[1644094984499,0.0021446,41612.0,41611.0,0.00493801]
[1644094984700,0.0011146,41612.0,41611.0,0.00493801]
[1644094984901,0.0011146,41612.0,41611.0,0.38879501]
[1644094985102,0.01975429,41617.0,41613.0,0.05]
[1644094985103,0.03886097,41617.0,41613.0,0.05]
[1644094985302,0.20670587,41628.0,41615.0,0.7]
[1644094985500,0.38445919,41624.0,41617.0,0.12013942]
[1644094985704,0.38445919,41624.0,41618.0,0.398]
[1644094985705,0.00070952,41623.0,41618.0,0.398]
[1644094985899,0.00070952,41623.0,41618.0,0.198]
[1644094986099,0.00070952,41623.0,41618.0,0.548]
[1644094986299,0.00070952,41623.0,41618.0,0.30806971]
[1644094986499,0.45531633,41624.0,41618.0,0.248]
[1644094986755,0.45531633,41624.0,41618.0,0.24870965]
[1644094986956,0.45531633,41624.0,41619.0,0.24701108]
[1644094986957,0.00070956,41623.0,41619.0,0.24701108]
[1644094987254,0.00070956,41623.0,41619.0,0.29501108]
[1644094987858,0.24,41624.0,41620.0,0.335857]
[1644094988055,0.00070956,41623.0,41621.0,0.098]
[1644094988257,0.00070956,41623.0,41622.0,0.635857]
[1644094988456,0.1194,41639.0,41623.0,0.060058]
[1644094988753,0.1194,41639.0,41622.0,0.833857]
[1644094988754,0.3246902,41626.0,41624.0,0.048]
[1644094988958,0.3246902,41626.0,41622.0,0.15]
[1644094988959,0.22090935,41625.0,41622.0,0.15]
[1644094989155,0.3246902,41626.0,41622.0,0.145]
[1644094989356,0.05,41624.0,41617.0,0.1]
[1644094989754,0.05,41624.0,41616.0,0.01910668]
[1644094990155,0.2539639,41622.0,41616.0,0.01910668]
[1644094990398,0.36904123,41619.0,41616.0,0.01910668]
[1644094991201,0.36904123,41619.0,41614.0,0.0002869]
[1644094991400,0.36904123,41619.0,41613.0,0.0502869]
[1644094991602,0.0644563,41616.0,41615.0,0.00070967]
[1644094992404,0.1654753,41616.0,41615.0,0.00070967]
[1644094992604,0.1654753,41616.0,41613.0,0.0002869]
[1644094992804,0.28242787,41615.0,41613.0,0.00070916]
[1644094993701,0.28242787,41615.0,41612.0,0.0002869]
[1644094993903,0.28983501,41612.0,41611.0,0.00493801]
[1644094994156,0.34085401,41612.0,41611.0,0.00493801]
[1644094994552,0.39085401,41612.0,41611.0,0.00493801]
[1644094994951,0.34085401,41612.0,41611.0,0.00366153]
[1644094995153,0.39085401,41612.0,41611.0,0.00366153]
[1644094995855,0.101019,41612.0,41611.0,0.00366153]
[1644094996853,0.051019,41612.0,41611.0,0.00247279]
[1644094997052,0.101019,41612.0,41611.0,0.00247279]
[1644094997253,0.051019,41612.0,41611.0,0.00247279]
[1644094997453,0.101019,41612.0,41611.0,0.00247279]
[1644094998503,0.341019,41612.0,41611.0,0.00247279]
[1644094999706,0.341019,41612.0,41611.0,0.0024108]
[1644095000705,0.24,41612.0,41611.0,0.0024108]
[1644095000907,0.10070946,41625.0,41612.0,0.7]
[1644095000909,0.05,41625.0,41612.0,0.7]
[1644095001111,0.3624,41627.0,41615.0,0.06007378]
[1644095001305,0.00070946,41625.0,41615.0,0.10807378]
[1644095001504,0.30941734,41621.0,41615.0,0.10807378]
[1644095001757,0.06961903,41617.0,41615.0,0.098]
[1644095001956,0.06961903,41617.0,41615.0,0.048]
[1644095002161,0.06961903,41617.0,41616.0,0.005]
[1644095002355,0.06961903,41617.0,41616.0,0.00596948]
[1644095002956,0.06961903,41617.0,41616.0,0.00096948]
[1644095003154,0.12063803,41617.0,41616.0,0.00096948]
[1644095004358,0.06961903,41617.0,41616.0,0.00096948]
[1644095008001,0.25512899,41620.0,41616.0,0.00096948]
[1644095008201,0.25512899,41620.0,41616.0,0.00125638]
[1644095008502,0.30941734,41621.0,41616.0,0.00125638]
[1644095008701,0.045,41617.0,41616.0,0.00125638]
[1644095009004,0.045,41617.0,41616.0,0.00096948]
[1644095010049,0.48792658,41620.0,41616.0,0.00096948]
[1644095010249,0.1326138,41619.0,41616.0,0.00125638]
[1644095010450,0.1326138,41619.0,41616.0,0.00096948]
[1644095011050,0.0815948,41619.0,41616.0,0.00125638]
[1644095011252,0.045,41617.0,41616.0,0.00125638]
[1644095011451,0.045,41617.0,41616.0,0.00096948]
[1644095013698,0.096019,41617.0,41616.0,0.00096948]
[1644095016501,0.03491519,41617.0,41616.0,0.00096948]
[1644095018058,0.25,41616.0,41614.0,0.00040006]
[1644095018262,0.034919,41615.0,41614.0,0.00040006]
[1644095019061,0.034919,41615.0,41612.0,0.0002869]
[1644095019260,0.36049851,41614.0,41609.0,0.0002869]
[1644095019460,0.034919,41613.0,41607.0,0.21515591]
[1644095019860,0.034919,41613.0,41608.0,0.0002869]
[1644095020062,0.034919,41613.0,41611.0,0.00122206]
[1644095021305,0.24568905,41613.0,41611.0,0.00122206]
[1644095022205,0.24568905,41613.0,41611.0,0.00116007]
[1644095029805,0.034919,41613.0,41611.0,0.00116007]
[1644095033450,0.30935715,41613.0,41611.0,0.00116007]
[1644095036004,0.034919,41613.0,41611.0,0.00116007]
[1644095037106,0.2303309,41612.0,41611.0,0.00116007]
[1644095037305,0.2652499,41612.0,41611.0,0.00116007]
[1644095041257,0.2652499,41612.0,41610.0,0.00017049]
[1644095041457,0.034919,41611.0,41610.0,0.00017049]
[1644095041656,0.034919,41611.0,41609.0,0.00070711]
[1644095041857,0.034919,41611.0,41605.0,0.00017049]
[1644095042157,0.034919,41611.0,41608.0,0.00070712]
[1644095043025,0.034919,41611.0,41606.0,0.05]
[1644095043226,0.034919,41611.0,41607.0,0.00070713]
[1644095043626,0.36049851,41614.0,41604.0,0.24491004]
[1644095043825,0.08990333,41606.0,41605.0,0.00028695]
[1644095044027,0.36049851,41614.0,41605.0,0.05]
[1644095044226,0.034919,41613.0,41606.0,0.05]
[1644095045227,0.03458796,41613.0,41606.0,0.05]
[1644095045826,0.03458796,41613.0,41606.0,0.05028695]
[1644095046227,0.03458796,41613.0,41606.0,0.05022496]
[1644095046852,0.06797609,41607.0,41606.0,0.04993801]
[1644095050709,0.56526147,41614.0,41606.0,0.04993801]
[1644095050902,0.034578,41613.0,41606.0,0.04993801]
[1644095051905,0.034578,41613.0,41606.0,0.05022496]
[1644095052102,0.034578,41613.0,41606.0,0.00028695]
[1644095052303,0.0833192,41610.0,41606.0,0.04993801]
[1644095052504,0.0833192,41610.0,41606.0,0.05022496]
[1644095052904,0.0833192,41610.0,41606.0,0.04993801]
[1644095054005,0.0833192,41610.0,41605.0,0.00094805]
[1644095054250,0.0666362,41610.0,41606.0,0.04993801]
[1644095054450,0.0666362,41610.0,41606.0,0.05022496]
[1644095054854,0.3066362,41610.0,41606.0,0.05022496]
[1644095055251,0.3066362,41610.0,41606.0,0.04993801]
[1644095055450,0.3066362,41610.0,41606.0,0.05022496]
[1644095056453,0.3066362,41610.0,41606.0,0.04993801]
[1644095056652,0.3066362,41610.0,41606.0,0.05022496]
[1644095057053,0.034578,41609.0,41606.0,0.00028695]
[1644095057251,0.034578,41609.0,41605.0,0.0006611]
[1644095057451,0.3066362,41610.0,41605.0,0.00028695]
[1644095057654,0.3066362,41610.0,41605.0,0.00066334]
[1644095057909,0.3066362,41610.0,41605.0,0.00095029]
[1644095058711,0.3066362,41610.0,41605.0,0.00028695]
[1644095058911,0.3066362,41610.0,41605.0,0.00066334]
[1644095059112,0.3066362,41610.0,41605.0,0.00095029]
[1644095059513,0.32034636,41607.0,41605.0,0.00095029]
[1644095059712,0.32034636,41607.0,41605.0,0.00066334]
[1644095059913,0.32034636,41607.0,41604.0,0.05022496]
[1644095060113,0.32034636,41607.0,41604.0,0.05088831]
[1644095061119,0.32034636,41607.0,41604.0,0.05022496]
[1644095066802,0.32034636,41607.0,41604.0,0.04903622]
[1644095067001,0.32159709,41607.0,41604.0,0.04903622]
[1644095067402,0.32159709,41607.0,41604.0,0.04968271]
[1644095067802,0.32159709,41607.0,41604.0,0.04468271]
[1644095068006,0.04082873,41606.0,41604.0,0.04468271]
[1644095068204,0.04082873,41606.0,41604.0,0.04439576]
[1644095068603,0.27702659,41605.0,41604.0,0.00064649]
[1644095068805,0.57562646,41605.0,41604.0,0.00064649]
[1644095069011,0.29859987,41605.0,41604.0,0.00064649]
[1644095069254,0.29859987,41605.0,41604.0,0.0005845]
[1644095069456,0.60685753,41605.0,41604.0,0.0005845]
[1644095069958,0.29859987,41605.0,41604.0,0.00064651]
[1644095070357,0.59934165,41605.0,41604.0,0.00064651]
[1644095070956,0.29859987,41605.0,41604.0,0.00064651]
[1644095072458,0.034578,41605.0,41604.0,0.00064651]
[1644095088910,0.034578,41605.0,41602.0,0.00138711]
[1644095089110,0.00625073,41603.0,41602.0,0.00167407]
[1644095089310,0.10393997,41603.0,41602.0,0.00138711]
[1644095089813,0.10393997,41603.0,41602.0,0.00072304]
[1644095091013,0.10393997,41603.0,41602.0,0.00066105]
[1644095091413,0.09768924,41603.0,41602.0,0.00066105]
[1644095091661,0.10393997,41603.0,41602.0,0.00066105]
[1644095094867,0.10393997,41603.0,41602.0,0.00129559]
[1644095100357,0.10393997,41603.0,41602.0,0.26891679]
[1644095100759,0.10393997,41603.0,41602.0,0.26391679]
[1644095102359,0.06936197,41603.0,41602.0,0.26391679]
[1644095104231,0.10393997,41603.0,41602.0,0.26391679]
[1644095105333,0.09768924,41603.0,41602.0,0.26391679]
[1644095105632,0.10393997,41603.0,41602.0,0.26391679]
[1644095107856,0.09768924,41603.0,41602.0,0.26391679]
[1644095108054,0.10393997,41603.0,41602.0,0.26391679]
[1644095111105,0.10393997,41603.0,41602.0,0.26272805]
[1644095113011,0.10393997,41603.0,41602.0,0.26266606]
[1644095123562,0.09768924,41603.0,41602.0,0.26266606]
[1644095123763,0.10393997,41603.0,41602.0,0.26266606]
[1644095131559,0.09768924,41603.0,41602.0,0.26266606]
[1644095131961,0.0640656,41606.0,41602.0,0.26266606]
[1644095132160,0.3566674,41606.0,41602.0,0.26266606]
[1644095132559,0.00625073,41603.0,41602.0,0.26266606]
[1644095134710,0.00625073,41603.0,41602.0,0.26260407]
[1644095136658,0.3566674,41606.0,41602.0,0.26260407]
[1644095137959,0.3566674,41606.0,41602.0,0.26326986]
[1644095138759,0.0640656,41606.0,41602.0,0.26368063]
[1644095139063,0.0640656,41606.0,41602.0,0.26301484]
[1644095139258,0.0640656,41606.0,41602.0,0.26368063]
[1644095139658,0.00625073,41604.0,41602.0,0.26368063]
[1644095140258,0.00625073,41604.0,41602.0,0.26301484]
[1644095142911,0.0640656,41606.0,41602.0,0.26301484]
[1644095143510,0.00625073,41604.0,41602.0,0.26301484]
[1644095144361,0.0640656,41606.0,41602.0,0.26301484]
[1644095144558,0.00625073,41604.0,41602.0,0.26301484]
[1644095146059,0.0640656,41606.0,41602.0,0.26301484]
[1644095146260,0.0640656,41606.0,41602.0,0.25801484]
[1644095147909,0.00625073,41604.0,41602.0,0.25801484]
[1644095148914,0.00625073,41604.0,41602.0,0.2583018]
[1644095150518,0.0640656,41606.0,41602.0,0.2583018]
[1644095150718,0.00625073,41604.0,41602.0,0.2583018]
[1644095151519,0.0640656,41606.0,41602.0,0.2583018]
[1644095151766,0.00625073,41604.0,41602.0,0.2583018]
[1644095152566,0.0640656,41606.0,41602.0,0.2583018]
[1644095152767,0.00625073,41604.0,41602.0,0.2583018]
[1644095157811,0.00625073,41604.0,41602.0,0.25801484]
[1644095160461,0.0640656,41606.0,41602.0,0.25801484]
[1644095160661,0.00625073,41604.0,41602.0,0.25801484]
[1644095161461,0.0640656,41606.0,41602.0,0.25801484]
[1644095162064,0.0640656,41606.0,41602.0,0.25872508]
[1644095162263,0.00625073,41604.0,41602.0,0.25872508]
[1644095163108,0.00625073,41604.0,41602.0,0.25801484]
[1644095163710,0.0640656,41606.0,41602.0,0.25801484]
[1644095163911,0.00625073,41604.0,41602.0,0.25801484]
[1644095166759,0.0640656,41606.0,41602.0,0.25801484]
[1644095167361,0.00625073,41605.0,41602.0,0.25801484]
[1644095170060,0.00625073,41605.0,41602.0,0.25793935]
[1644095171810,0.00625073,41604.0,41602.0,0.25793935]
[1644095175766,0.0640656,41606.0,41602.0,0.25793935]
[1644095175966,0.00625073,41604.0,41602.0,0.25793935]
[1644095178915,0.00625073,41604.0,41601.0,0.02226255]
[1644095179113,0.0640656,41606.0,41601.0,0.02197558]
[1644095179515,0.02802442,41604.0,41601.0,0.02197558]
[1644095180315,0.02802442,41604.0,41601.0,0.02226255]
[1644095181319,0.02802442,41604.0,41601.0,0.02197558]
[1644095181520,0.0640656,41606.0,41601.0,0.02226255]
[1644095182160,0.02802442,41604.0,41601.0,0.02226255]
[1644095182560,0.02802442,41604.0,41601.0,0.02268677]
[1644095183561,0.02802442,41604.0,41601.0,0.02197558]
[1644095183962,0.02802442,41604.0,41601.0,0.02226255]
[1644095184964,0.02802442,41604.0,41601.0,0.02197558]
[1644095185165,0.02802442,41604.0,41601.0,0.02226255]
[1644095187213,0.02802442,41604.0,41601.0,0.02197558]
[1644095187412,0.02802442,41604.0,41601.0,0.02226255]
[1644095188416,0.02802442,41604.0,41601.0,0.02197558]
[1644095188816,0.02802442,41604.0,41601.0,0.02226255]
[1644095189663,0.02802442,41604.0,41601.0,0.02197558]
[1644095189860,0.02802442,41604.0,41601.0,0.02226255]
[1644095190961,0.02802442,41604.0,41601.0,0.02197558]
[1644095191165,0.02802442,41604.0,41601.0,0.02226255]
[1644095192160,0.02802442,41604.0,41601.0,0.02197558]
[1644095192361,0.02802442,41604.0,41601.0,0.02226255]
[1644095192562,0.13963049,41609.0,41601.0,0.02226255]
[1644095192766,0.13963049,41609.0,41608.0,0.02197558]
[1644095193020,0.24,41610.0,41608.0,0.06997558]
[1644095193216,0.24025458,41610.0,41609.0,0.35]
[1644095193415,0.24,41610.0,41609.0,0.8855663]
[1644095193616,0.24,41610.0,41609.0,1.14905876]
[1644095194215,0.24,41610.0,41609.0,0.84905876]
[1644095194416,0.24,41610.0,41609.0,0.84741846]
[1644095195017,0.24,41610.0,41609.0,1.14741846]
[1644095195818,0.00025458,41622.0,41610.0,0.7]
[1644095196018,0.04953563,41623.0,41619.0,0.02197558]
[1644095196218,0.00026039,41622.0,41619.0,0.02197558]
[1644095196423,0.38594527,41621.0,41619.0,0.02197558]
[1644095196868,0.38620566,41621.0,41619.0,0.02197558]
[1644095197869,0.38620566,41621.0,41616.0,0.27083645]
[1644095198769,0.38620566,41621.0,41616.0,0.02197558]
[1644095199370,0.38648145,41621.0,41616.0,0.02197558]
[1644095200416,0.38620566,41621.0,41616.0,0.02197558]
[1644095200617,0.6268762,41621.0,41616.0,0.02197558]
[1644095201420,0.6268762,41621.0,41613.0,0.02197558]
[1644095201622,0.62620566,41621.0,41611.0,0.1189]
[1644095201820,0.62620566,41621.0,41608.0,0.02197558]
[1644095201821,0.3570626,41620.0,41608.0,0.02197558]
[1644095202020,0.06742255,41613.0,41606.0,0.3652]
[1644095202219,0.39628781,41613.0,41606.0,0.3652]
[1644095202417,0.3965482,41613.0,41605.0,0.02264637]
[1644095202717,0.2186715,41609.0,41605.0,0.02197558]
[1644095202919,0.2186715,41609.0,41605.0,0.02264632]
[1644095203118,0.2186715,41609.0,41605.0,0.00067074]
[1644095203319,0.02802442,41608.0,41605.0,0.00067074]
[1644095203923,0.02802442,41608.0,41603.0,0.02024869]
[1644095204175,0.02802442,41608.0,41604.0,0.00067242]
[1644095205168,0.02802442,41608.0,41601.0,0.00028697]
[1644095205367,0.02802442,41608.0,41604.0,0.00067243]
[1644095205566,0.45625821,41607.0,41604.0,0.00067243]
[1644095205767,0.48428263,41607.0,41604.0,0.00067243]
[1644095206367,0.48428263,41607.0,41601.0,0.00028697]
[1644095206566,0.48428263,41607.0,41603.0,0.00067243]
[1644095206772,0.45625821,41607.0,41603.0,0.00067243]
[1644095206967,0.48428263,41607.0,41603.0,0.00067243]
[1644095207269,0.45625821,41607.0,41603.0,0.00067243]
[1644095207467,0.45625821,41607.0,41602.0,0.02197558]
[1644095207667,0.45625821,41607.0,41603.0,0.00067233]
[1644095207668,0.45461783,41607.0,41603.0,0.00067233]
[1644095207923,0.48264225,41607.0,41603.0,0.00067233]
[1644095208124,0.45461783,41607.0,41603.0,0.00067233]
[1644095208824,0.45461783,41607.0,41602.0,0.02197558]
[1644095209025,0.45461783,41607.0,41603.0,0.00067233]
[1644095209333,0.00026039,41611.0,41606.0,0.02197558]
[1644095209526,0.00026039,41612.0,41610.0,0.02197558]
[1644095209725,0.00026039,41613.0,41610.0,0.02197558]
[1644095209924,0.0208364,41614.0,41610.0,0.02197558]
[1644095210124,0.30887714,41612.0,41610.0,0.02197558]
[1644095210523,0.30913753,41612.0,41610.0,0.02197558]
[1644095210724,0.30887714,41612.0,41610.0,0.02197558]
[1644095210925,0.08521675,41611.0,41610.0,0.02197558]
[1644095212574,0.08521675,41611.0,41607.0,0.02197558]
[1644095212770,0.08547714,41611.0,41607.0,0.02197558]
[1644095213171,0.08547714,41611.0,41605.0,0.00067233]
[1644095213373,0.08547714,41611.0,41610.0,0.02197558]
[1644095213572,0.08521675,41611.0,41610.0,0.02197558]
[1644095214773,0.08689343,41611.0,41610.0,0.02197558]
[1644095215415,0.00167668,41611.0,41610.0,0.02197558]
[1644095215717,0.00167668,41611.0,41610.0,0.06997558]
[1644095215927,0.00167668,41611.0,41610.0,0.70590158]
[1644095216118,0.00167668,41611.0,41610.0,0.80590158]
[1644095216318,0.00167668,41611.0,41610.0,0.90590158]
[1644095216514,0.00067217,41615.0,41610.0,0.90590158]
[1644095216716,0.00067217,41615.0,41614.0,0.45790158]
[1644095216918,0.00067217,41615.0,41614.0,0.90590158]
[1644095217118,0.02077128,41623.0,41614.0,0.90590158]
[1644095217314,0.02077128,41623.0,41622.0,0.02197558]
[1644095217514,0.02077128,41623.0,41622.0,0.30765467]
[1644095217716,0.02077128,41623.0,41622.0,0.67618831]
[1644095217915,0.02077128,41623.0,41622.0,0.77618831]
[1644095218315,0.06541446,41627.0,41622.0,0.77618831]
[1644095218515,0.06541446,41627.0,41626.0,0.02197558]
[1644095221270,0.06541446,41627.0,41622.0,0.098]
[1644095221668,0.06541446,41627.0,41618.0,0.17197558]
[1644095221869,0.06541446,41627.0,41618.0,0.12197558]
[1644095222067,0.06377487,41627.0,41618.0,0.12197558]
[1644095222272,0.07477797,41619.0,41618.0,0.12197558]
[1644095222468,0.07477797,41619.0,41618.0,0.45790158]
[1644095222916,0.07477797,41619.0,41618.0,0.55790158]
[1644095223817,0.07477797,41619.0,41618.0,0.22197558]
[1644095224015,0.07477797,41619.0,41618.0,0.12197558]
[1644095227166,0.0002608,41620.0,41618.0,0.39011227]
[1644095227364,0.00093188,41621.0,41619.0,0.59465235]
[1644095227567,0.00067108,41621.0,41620.0,0.25156587]
[1644095227766,0.00067108,41621.0,41620.0,0.30156587]
[1644095227964,0.00026083,41622.0,41620.0,0.30156587]
[1644095228164,0.38221868,41623.0,41620.0,0.30156587]
[1644095228364,0.0705145,41622.0,41620.0,0.30156587]
[1644095228564,0.00093189,41623.0,41621.0,0.2812076]
[1644095228766,0.00026083,41622.0,41621.0,0.2812076]
[1644095228965,0.00093189,41623.0,41622.0,0.335926]
[1644095229164,0.00026083,41625.0,41622.0,0.59578888]
[1644095229365,0.02143109,41626.0,41624.0,0.02197558]
[1644095229366,0.02169192,41626.0,41624.0,0.02197558]
[1644095229564,0.00026083,41625.0,41624.0,0.02197558]
[1644095229764,0.02169192,41626.0,41624.0,0.02197558]
[1644095230168,0.00026083,41626.0,41624.0,0.02197558]
[1644095230419,0.08871693,41628.0,41624.0,0.02197558]
[1644095230618,0.00026083,41626.0,41624.0,0.02197558]
[1644095230819,0.24093352,41627.0,41624.0,0.02197558]
[1644095231518,0.24026083,41627.0,41624.0,0.02197558]
[1644095237792,0.24,41627.0,41624.0,0.02197558]
[1644095238024,0.24026083,41627.0,41624.0,0.02197558]
[1644095239020,0.24,41627.0,41624.0,0.02197558]
[1644095239424,0.24,41627.0,41625.0,0.048]
[1644095239622,0.24,41627.0,41626.0,0.31919152]
[1644095239821,0.24,41627.0,41626.0,0.56719152]
[1644095241685,0.24,41627.0,41626.0,0.90311752]
[1644095243284,0.00026083,41628.0,41627.0,0.6]
[1644095243480,0.00026083,41636.0,41627.0,1.30231239]
[1644095243684,0.00026083,41637.0,41635.0,0.02197558]
[1644095243881,7.46864845,41638.0,41635.0,0.02197558]
[1644095244084,0.00026083,41637.0,41635.0,0.02197558]
[1644095244279,7.46864845,41638.0,41636.0,0.25860487]
[1644095244479,0.00026083,41637.0,41636.0,0.25860487]
[1644095244779,7.46890928,41638.0,41637.0,0.05]
[1644095244980,7.46864845,41638.0,41637.0,0.05]
[1644095245179,7.46864845,41638.0,41637.0,0.29451864]
[1644095245416,7.46864845,41638.0,41637.0,0.34251864]
[1644095245618,7.46864845,41638.0,41637.0,0.098]
[1644095246123,7.46864845,41638.0,41637.0,0.398]
[1644095246320,7.46864845,41638.0,41637.0,0.498]
[1644095246519,7.46864845,41638.0,41637.0,0.28257]
[1644095246718,7.46864845,41638.0,41637.0,0.58257]
[1644095246922,7.46011845,41638.0,41637.0,0.58257]
[1644095248219,7.46011845,41638.0,41637.0,1.08257]
[1644095251869,7.46011845,41638.0,41637.0,0.78257]
[1644095252274,7.46011845,41638.0,41637.0,0.73457]
[1644095253218,7.80622826,41638.0,41637.0,0.23457]
[1644095253419,7.80622826,41638.0,41637.0,0.05]
[1644095253623,7.80622826,41638.0,41635.0,0.22197558]
[1644095253821,7.80622826,41638.0,41636.0,0.05]
[1644095254623,0.08426936,41637.0,41636.0,0.05]
[1644095256870,0.08426936,41637.0,41632.0,0.84901628]
[1644095257071,0.0845306,41637.0,41633.0,0.1]
[1644095257470,0.0845306,41637.0,41633.0,0.6]
[1644095257669,0.0845306,41637.0,41633.0,0.7]
[1644095258069,0.3245306,41637.0,41633.0,0.7]
[1644095258270,0.32520737,41637.0,41633.0,0.7]
[1644095259171,0.3245306,41637.0,41633.0,0.7]
[1644095259372,0.324784,41637.0,41633.0,0.7]
[1644095259771,0.324784,41637.0,41634.0,0.02197558]
[1644095260421,0.3245306,41637.0,41634.0,0.02197558]
[1644095261020,0.3245306,41637.0,41633.0,0.1]
[1644095261220,0.3245306,41637.0,41635.0,0.02197558]
[1644095261823,0.24026124,41637.0,41635.0,0.02197558]
[1644095262725,0.24026124,41637.0,41636.0,0.048]
[1644095262927,0.24,41637.0,41636.0,0.36026757]
[1644095263124,0.24,41637.0,41636.0,0.41026757]
[1644095263324,0.24,41637.0,41636.0,0.51026757]
[1644095264271,0.235,41637.0,41636.0,0.51026757]
[1644095267770,0.235,41637.0,41636.0,0.44368965]
[1644095268455,0.235,41637.0,41636.0,0.198]
[1644095268856,0.235,41637.0,41636.0,0.098]
[1644095269056,0.235,41637.0,41636.0,0.34263665]
[1644095269257,0.235,41637.0,41636.0,0.198]
[1644095269460,0.235,41637.0,41636.0,0.45585158]
[1644095271969,0.23,41637.0,41636.0,0.45585158]
[1644095272165,0.23,41637.0,41636.0,0.198]
[1644095272364,0.23,41637.0,41636.0,0.098]
[1644095273265,0.23,41637.0,41636.0,0.29655639]
[1644095273464,0.23,41637.0,41636.0,0.05]
[1644095275717,0.23,41637.0,41635.0,0.1]
[1644095275919,0.23026124,41637.0,41635.0,0.1]
[1644095276318,0.23026124,41637.0,41634.0,0.1]
[1644095276518,0.23026124,41637.0,41636.0,0.02197558]
[1644095276718,0.23,41637.0,41636.0,0.02197558]
[1644095276921,0.23,41637.0,41634.0,0.1]
[1644095277123,0.23026124,41637.0,41634.0,0.1]
[1644095278019,0.23026124,41637.0,41634.0,0.05]
[1644095278218,0.23026124,41637.0,41633.0,0.1]
[1644095278419,0.23026124,41637.0,41633.0,0.05]
[1644095278619,0.23026124,41637.0,41632.0,0.47963458]
[1644095279178,0.23026124,41637.0,41632.0,0.2]
[1644095279375,0.23026124,41637.0,41632.0,0.1]
[1644095279575,0.23026124,41637.0,41631.0,0.40963438]
[1644095279576,0.07604741,41634.0,41631.0,0.40963438]
[1644095280576,0.07604741,41634.0,41633.0,0.02197558]
[1644095281175,0.07604741,41634.0,41633.0,0.07197558]
[1644095282476,0.07604741,41634.0,41633.0,0.05]
[1644095282920,0.07604741,41634.0,41633.0,0.1]
[1644095283118,0.07604741,41634.0,41631.0,0.1]
[1644095283321,0.07604741,41634.0,41631.0,0.05]
[1644095283519,0.07630865,41634.0,41631.0,0.05]
[1644095283719,0.07604741,41634.0,41631.0,0.05]
[1644095283922,0.07604741,41634.0,41631.0,0.29616984]
[1644095284721,0.07630865,41634.0,41631.0,0.29616984]
[1644095284929,0.07604741,41634.0,41631.0,0.29616984]
[1644095285221,0.07630865,41634.0,41631.0,0.29616984]
[1644095285821,0.07604741,41634.0,41631.0,0.29616984]
[1644095286022,0.07630865,41634.0,41631.0,0.29616984]
[1644095287167,0.07604741,41634.0,41631.0,0.29616984]
[1644095287366,0.07630865,41634.0,41631.0,0.29616984]
[1644095287569,0.07630865,41634.0,41633.0,0.02197558]
[1644095287570,0.00026124,41634.0,41633.0,0.02197558]
[1644095287768,0.00067784,41635.0,41633.0,0.06997558]
[1644095287968,0.00026124,41636.0,41634.0,0.25621531]
[1644095288169,0.00067783,41636.0,41634.0,0.35621531]
[1644095288367,0.00093907,41636.0,41635.0,0.35753042]
[1644095288570,0.00067783,41636.0,41635.0,0.35753042]
[1644095288768,0.00067783,41636.0,41635.0,0.45753042]